[Event "EU-chT (Women) 20th"]
[Site "Reykjavik"]
[Date "2015.11.20"]
[Round "7.3"]
[White "Gunina, Valentina"]
[Black "Papp, Petra"]
[Result "1-0"]
[ECO "D71"]
[WhiteElo "2516"]
[BlackElo "2303"]
[Annotator "Baldauf,M"]
[PlyCount "57"]
[EventDate "2015.11.13"]
[EventType "team-swiss"]
[EventRounds "9"]
[EventCountry "ISL"]
[SourceTitle "CBM 169 Extra"]
[Source "ChessBase"]
[SourceDate "2015.12.18"]
[SourceVersion "1"]
[SourceVersionDate "2015.12.18"]
[SourceQuality "1"]
[WhiteTeam "Russia (W)"]
[BlackTeam "Hungary (W)"]
[WhiteTeamCountry "RUS"]
[BlackTeamCountry "HUN"]
[TimeControl "6000+1485"]
[WhiteClock "1:01:47"]
[BlackClock "0:00:44"]

1. d4 Nf6 2. c4 g6 3. Nc3 d5 4. cxd5 Nxd5 5. g3 Bg7 6. Bg2 Nxc3 7. bxc3 c5 8.
e3 Qa5 9. Bd2 O-O 10. Nh3 $146 {der Springer geht normalerweise nach e2. Hier
findet er jedoch ein Feld auf f2.} Nc6 11. f4 Qc7 12. Nf2 e6 13. h4 {ein
simples weißes Konzept. Die Bauernkette im Zentrum ist stabil, die Löcher auf
den weißen Feldern fallen nicht zu sehr ins Gewicht.} b6 14. h5 Bb7 15. hxg6
fxg6 (15... hxg6 {ist positionell natürlich gesünder, die offene h-Linie
jedoch furchteinflößend.} 16. Qg4 Na5 17. Bxb7 Qxb7 18. Qh3 Rfd8 19. Qh7+ Kf8 {
mit dem Drachenläufer wird man nicht Matt - oder doch?} 20. f5 $1 exf5 21. e4
$13) 16. Qg4 Rae8 17. Ne4 cxd4 18. cxd4 e5 $2 {Diagramm [#] Der Gegenstoß im
Zentrum ist eigentlich die logische Reaktion auf das bisherige weiße Spiel,
doch hier wird die Diagonale a2-g8 für den Läufer auf g2 geöffnet, was für den
schwarzen König tödlich endet.} 19. Rxh7 $1 Nxd4 (19... Kxh7 20. Ng5+ Kg8 21.
Bd5+ $18) 20. Rc1 $1 Qe7 21. Qxg6 Qf7 22. Rxg7+ Qxg7 23. Qxg7+ Kxg7 24. Rc7+
Rf7 25. Nd6 $1 {eine ansehnliche Geometrie} Ree7 26. Rxb7 Rxb7 27. exd4 exf4
28. Bxb7 Rd7 29. Bxf4 1-0

[Event "Gashimov Memorial-B 1st"]
[Site "Shamkir"]
[Date "2014.04.23"]
[Round "4"]
[White "Durarbayli, Vasif"]
[Black "Guseinov, Gadir"]
[Result "0-1"]
[ECO "D71"]
[WhiteElo "2584"]
[BlackElo "2621"]
[Annotator "Sagar Shah"]
[PlyCount "77"]
[EventDate "2014.03.21"]
[EventType "tourn"]
[EventRounds "9"]
[EventCountry "AZE"]
[EventCategory "17"]
[SourceTitle "CBM 160"]
[Source "ChessBase"]
[SourceDate "2014.05.15"]
[SourceVersion "1"]
[SourceVersionDate "2014.05.15"]
[SourceQuality "1"]
[TimeControl "40/7200:20/3600:900+30"]
[WhiteClock "0:59:26"]
[BlackClock "0:56:56"]

1. d4 {[%emt 0:00:05]} Nf6 {[%emt 0:00:05]} 2. c4 {[%emt 0:00:04]} g6 {[%emt 0:
01:16]} 3. g3 {[%emt 0:00:06]} c6 {[%emt 0:03:27]} 4. Bg2 {[%emt 0:00:18]} d5 {
[%emt 0:00:07]} 5. Qa4 {[%emt 0:00:05]} (5. cxd5 cxd5 6. Nf3 Bg7 7. Ne5 Ne4 8.
Nd2 Nxd2 9. Bxd2 O-O 10. O-O Nd7 11. Bc3 Nf6 12. Qb3 Ne4 13. Bxe4 dxe4 14. Rfd1
Qb6 15. Qxb6 axb6 16. Nc4 Be6 17. d5 Bg4 18. Bxg7 Kxg7 19. Kf1 b5 20. Ne3 Bd7
21. a3 Rfc8 22. Rac1 Kf6 23. Rxc8 Rxc8 24. d6 e6 25. Ng4+ Kf5 26. Ne3+ Kf6 27.
Ng4+ Kf5 {1/2-1/2 (27) Aronian,L (2812)-Gelfand,B (2777) Zuerich 2014}) 5...
Nfd7 {[%emt 0:00:46]} 6. Qb3 {[%emt 0:00:26]} dxc4 {[%emt 0:00:57]} 7. Qxc4 {
[%emt 0:00:06]} Bg7 {[%emt 0:00:04]} 8. Nf3 {[%emt 0:00:21]} O-O {[%emt 0:01:
12]} 9. O-O {[%emt 0:00:29]} e5 {[%emt 0:01:09]} 10. dxe5 {[%emt 0:03:13]} Nxe5
{[%emt 0:00:20]} 11. Nxe5 {[%emt 0:00:05]} Bxe5 {[%emt 0:00:06]} 12. Qc2 {
[%emt 0:03:53]} Qe7 $146 {[%emt 0:02:35]} (12... Na6 13. Bd2 Qe7 14. Bc3 Re8
15. Bxe5 Qxe5 16. Nc3 Be6 17. e4 Rad8 18. Rfd1 Nb4 19. Qe2 b5 20. Rd2 Qg5 21.
f4 Qc5+ 22. Qf2 Qxf2+ 23. Rxf2 Nd3 24. Rd2 Nb4 25. Rf2 Nd3 26. Rd2 Nb4 27. Rf2
{1/2-1/2 (27) Navara,D (2703)-Ragger,M (2668) Germany 2014}) 13. Nd2 {[%emt 0:
09:05]} Be6 {[%emt 0:12:21]} 14. Nb3 {[%emt 0:12:00]} Na6 {[%emt 0:03:14]} 15.
Bd2 {[%emt 0:07:05]} Rad8 {[%emt 0:04:31]} 16. Ba5 {[%emt 0:01:54]} b6 {
[%emt 0:07:31]} 17. Bc3 {[%emt 0:09:24]} Nb4 {[%emt 0:05:24]} 18. Qe4 {[%emt 0:
04:11]} Bxc3 {[%emt 0:08:45]} 19. bxc3 {[%emt 0:00:14]} Nd5 {[%emt 0:00:04]}
20. Nd4 {[%emt 0:06:46]} Nxc3 {[%emt 0:07:17]} 21. Nxc6 {[%emt 0:00:05]} Qf6 {
[%emt 0:00:15]} 22. Qc2 {[%emt 0:05:33] Black has a small edge because his
knight on c3 is well placed and putting pressure on the white position.'} (22.
Qe3 {was a better move} Nd5 23. Qf3) 22... Rd6 {was a better move} 23. Rfc1 $6
{[%emt 0:14:54]} (23. Rac1 {was definitely better, but then the a2 pawn will
fall.}) (23. Nxa7 {was better.}) 23... Bg4 {[%emt 0:05:09]} 24. Qxc3 $6 {
[%emt 0:04:46] More than a blunder. I think White deliberately went for this
line. But of course Black is close to winning now! Can you spot the little
deflecting idea which is so common!} (24. Ne7+ $1 Qxe7 25. Qxc3 Qxe2 {White
would be a pawn down, but he can fight on.}) 24... Rd1+ $1 {[%emt 0:02:18]} 25.
Rxd1 {[%emt 0:00:10]} Qxc3 {[%emt 0:00:04]} 26. Nxa7 {[%emt 0:07:01]} Bxe2 $17
{[%emt 0:01:14] Black is clearly better and went on to win.} 27. Rdc1 {[%emt 0:
00:27]} Qf6 {[%emt 0:07:11]} 28. Nc6 {[%emt 0:06:50]} Re8 {[%emt 0:02:10]} 29.
Nb4 {[%emt 0:01:43]} Kg7 {[%emt 0:10:07]} 30. Nd5 {[%emt 0:00:41]} Qd4 {
[%emt 0:00:11]} 31. Rab1 {[%emt 0:02:16]} Bc4 {[%emt 0:04:40]} 32. Nc3 {
[%emt 0:06:55]} Bd3 {[%emt 0:03:25]} 33. Rb3 {[%emt 0:01:27]} Rc8 {[%emt 0:00:
31]} 34. Bf3 {[%emt 0:01:07]} Bc4 {[%emt 0:04:53]} 35. Rb4 {[%emt 0:03:11]} Qd2
{[%emt 0:03:39]} 36. Rbb1 {[%emt 0:00:01]} Ba6 {[%emt 0:02:11]} 37. Kg2 {
[%emt 0:00:29]} Rxc3 {[%emt 0:00:15]} 38. Rd1 {[%emt 0:00:35]} Qg5 {[%emt 0:01:
03]} 39. Rd5 {[%emt 0:00:15]} 0-1